[Event "Titled Tuesday Blitz November 29 Early 2022"]
[White "Tarlabasi, Emirhan"]
[Black "Dzhaparov, Medet"]
[WhiteFideId "6350275"]
[BlackFideId "13803689"]
[WhiteElo "2200"]
[BlackElo "1702"]
[Result "1-0"]
[Round "04"]
[TimeControl "180+1"]
[Date "2022.11.30"]
[WhiteClock "0:02:59"]
[BlackClock "0:02:31"]

1. Nf3 {[%clk 0:03:00]}  d5 {[%clk 0:02:59]} 2. c4 {[%clk 0:03:01]}  Nf6 {[%clk 0:02:57]} 3. b3 {[%clk 0:03:01]}  Nc6 {[%clk 0:02:57]} 4. Bb2 {[%clk 0:03:02]}  e6 {[%clk 0:02:56]} 5. g3 {[%clk 0:03:02]}  Bc5 {[%clk 0:02:56]} 6. Bg2 {[%clk 0:03:03]}  O-O {[%clk 0:02:55]} 7. O-O {[%clk 0:03:03]}  dxc4 {[%clk 0:02:53]} 8. bxc4 {[%clk 0:03:03]}  Nd4 {[%clk 0:02:53]} 9. e3 {[%clk 0:03:00]}  Nxf3+ {[%clk 0:02:53]} 10. Qxf3 {[%clk 0:03:01]}  Be7 {[%clk 0:02:49]} 11. d4 {[%clk 0:03:01]}  c6 {[%clk 0:02:46]} 12. Nc3 {[%clk 0:03:01]}  Qb6 {[%clk 0:02:45]} 13. Rab1 {[%clk 0:03:01]}  Qa6 {[%clk 0:02:45]} 14. Qe2 {[%clk 0:03:00]}  Bd7 {[%clk 0:02:42]} 15. e4 {[%clk 0:03:00]}  b5 {[%clk 0:02:39]} 16. e5 {[%clk 0:03:00]}  Ne8 {[%clk 0:02:36]} 17. cxb5 {[%clk 0:03:01]}  Qc8 {[%clk 0:02:34]} 18. bxc6 {[%clk 0:03:00]}  Bxc6 {[%clk 0:02:35]} 19. Ne4 {[%clk 0:03:00]}  Nc7 {[%clk 0:02:33]} 20. Rfc1 {[%clk 0:03:00]}  Qd7 {[%clk 0:02:32]} 21. Rxc6 {[%clk 0:02:59]}  Qxc6 {[%clk 0:02:31]} 22. Nf6+ {[%clk 0:02:59]} 1-0


[Site "https://www.chess.com"]

[Event "Titled Tuesday Blitz November 29 Early 2022"]
[White "Tasev, Dejan"]
[Black "Hoffmann, Asa"]
[WhiteFideId "936618"]
[BlackFideId "2001470"]
[WhiteElo "2256"]
[BlackElo "2117"]
[Result "0-1"]
[Round "04"]
[TimeControl "180+1"]
[Date "2022.11.30"]
[WhiteClock "0:00:28"]
[BlackClock "0:00:39"]

1. e4 {[%clk 0:03:00]}  d6 {[%clk 0:02:52]} 2. d4 {[%clk 0:03:00]}  Nf6 {[%clk 0:02:51]} 3. Nc3 {[%clk 0:03:01]}  c6 {[%clk 0:02:51]} 4. Nge2 {[%clk 0:03:01]}  Nbd7 {[%clk 0:02:50]} 5. a4 {[%clk 0:03:01]}  a5 {[%clk 0:02:49]} 6. g3 {[%clk 0:03:01]}  e5 {[%clk 0:02:49]} 7. Bg2 {[%clk 0:03:00]}  Be7 {[%clk 0:02:49]} 8. O-O {[%clk 0:03:00]}  Qc7 {[%clk 0:02:49]} 9. h3 {[%clk 0:03:00]}  b6 {[%clk 0:02:48]} 10. b3 {[%clk 0:03:01]}  Ba6 {[%clk 0:02:47]} 11. Bb2 {[%clk 0:03:00]}  c5 {[%clk 0:02:46]} 12. dxe5 {[%clk 0:02:56]}  dxe5 {[%clk 0:02:45]} 13. Nd5 {[%clk 0:02:49]}  Nxd5 {[%clk 0:02:44]} 14. exd5 {[%clk 0:02:49]}  Bd6 {[%clk 0:02:42]} 15. c4 {[%clk 0:02:46]}  O-O {[%clk 0:02:40]} 16. Nc3 {[%clk 0:02:44]}  f5 {[%clk 0:02:38]} 17. Qc2 {[%clk 0:02:40]}  Rae8 {[%clk 0:02:37]} 18. Rae1 {[%clk 0:02:39]}  e4 {[%clk 0:02:36]} 19. g4 {[%clk 0:02:34]}  g6 {[%clk 0:02:31]} 20. gxf5 {[%clk 0:02:31]}  gxf5 {[%clk 0:02:30]} 21. f3 {[%clk 0:02:15]}  Bg3 {[%clk 0:02:13]} 22. Re2 {[%clk 0:02:10]}  exf3 {[%clk 0:02:02]} 23. Rxf3 {[%clk 0:02:06]}  Rxe2 {[%clk 0:01:56]} 24. Qxe2 {[%clk 0:02:01]}  Be5 {[%clk 0:01:49]} 25. Nd1 {[%clk 0:01:37]}  Bxb2 {[%clk 0:01:47]} 26. Nxb2 {[%clk 0:01:29]}  Qe5 {[%clk 0:01:44]} 27. Qf2 {[%clk 0:01:16]}  Bc8 {[%clk 0:01:35]} 28. Nd3 {[%clk 0:01:16]}  Qd4 {[%clk 0:01:24]} 29. Qxd4 {[%clk 0:01:09]}  cxd4 {[%clk 0:01:24]} 30. Rf4 {[%clk 0:00:59]}  Nc5 {[%clk 0:01:24]} 31. Rxd4 {[%clk 0:00:58]}  Nxb3 {[%clk 0:01:23]} 32. Rf4 {[%clk 0:00:55]}  Ba6 {[%clk 0:01:17]} 33. Ne5 {[%clk 0:00:49]}  Nc5 {[%clk 0:01:11]} 34. d6 {[%clk 0:00:43]}  Rd8 {[%clk 0:01:08]} 35. Bd5+ {[%clk 0:00:40]}  Kg7 {[%clk 0:01:08]} 36. Nf7 {[%clk 0:00:37]}  Rd7 {[%clk 0:01:02]} 37. Rxf5 {[%clk 0:00:37]}  Nxa4 {[%clk 0:00:57]} 38. Be6 {[%clk 0:00:33]}  Bc8 {[%clk 0:00:54]} 39. Bxd7 {[%clk 0:00:33]}  Bxd7 {[%clk 0:00:54]} 40. Rf2 {[%clk 0:00:31]}  Nc5 {[%clk 0:00:54]} 41. Ne5 {[%clk 0:00:31]}  a4 {[%clk 0:00:53]} 42. Kg2 {[%clk 0:00:29]}  Be6 {[%clk 0:00:47]} 43. Kg3 {[%clk 0:00:28]}  Ne4+ {[%clk 0:00:44]} 44. Kg2 {[%clk 0:00:25]}  Nxf2 {[%clk 0:00:44]} 45. Kxf2 {[%clk 0:00:26]}  a3 {[%clk 0:00:43]} 46. d7 {[%clk 0:00:26]}  Bxd7 {[%clk 0:00:43]} 47. Nxd7 {[%clk 0:00:27]}  a2 {[%clk 0:00:43]} 48. Nxb6 {[%clk 0:00:27]}  a1=Q {[%clk 0:00:42]} 49. Ke3 {[%clk 0:00:28]}  Qe5+ {[%clk 0:00:39]} 0-1


[Site "https://www.chess.com"]

[Event "Titled Tuesday Blitz November 29 Early 2022"]
[White "Tokhirjonova, Gulrukhbegim"]
[Black "Putnam, Liam"]
[WhiteFideId "14203626"]
[BlackFideId "30938279"]
[WhiteElo "2236"]
[BlackElo "2082"]
[Result "1/2-1/2"]
[Round "04"]
[TimeControl "180+1"]
[Date "2022.11.30"]
[WhiteClock "0:00:24"]
[BlackClock "0:00:06"]

1. Nf3 {[%clk 0:02:55]}  d5 {[%clk 0:02:59]} 2. g3 {[%clk 0:02:53]}  g6 {[%clk 0:02:59]} 3. Bg2 {[%clk 0:02:52]}  Bg7 {[%clk 0:03:00]} 4. d4 {[%clk 0:02:53]}  c6 {[%clk 0:02:59]} 5. O-O {[%clk 0:02:53]}  Nf6 {[%clk 0:03:00]} 6. Nc3 {[%clk 0:02:54]}  O-O {[%clk 0:02:59]} 7. Ne5 {[%clk 0:02:54]}  Nbd7 {[%clk 0:02:58]} 8. Bf4 {[%clk 0:02:54]}  Nh5 {[%clk 0:02:55]} 9. Nxd7 {[%clk 0:02:50]}  Bxd7 {[%clk 0:02:54]} 10. Be3 {[%clk 0:02:49]}  Qc7 {[%clk 0:02:44]} 11. h3 {[%clk 0:02:48]}  Rae8 {[%clk 0:02:41]} 12. Qd2 {[%clk 0:02:45]}  f5 {[%clk 0:02:40]} 13. Bh6 {[%clk 0:02:26]}  f4 {[%clk 0:02:10]} 14. Bxg7 {[%clk 0:02:25]}  Nxg7 {[%clk 0:02:11]} 15. g4 {[%clk 0:02:22]}  g5 {[%clk 0:01:57]} 16. e4 {[%clk 0:02:07]}  f3 {[%clk 0:01:33]} 17. Bh1 {[%clk 0:02:06]}  Rf4 {[%clk 0:01:31]} 18. e5 {[%clk 0:01:49]}  Ne6 {[%clk 0:01:26]} 19. Qe3 {[%clk 0:01:39]}  Nxd4 {[%clk 0:01:23]} 20. Rad1 {[%clk 0:01:32]}  Nxc2 {[%clk 0:01:00]} 21. Qc1 {[%clk 0:01:31]}  Nd4 {[%clk 0:00:56]} 22. Rxd4 {[%clk 0:01:07]}  Rxd4 {[%clk 0:00:56]} 23. Nb5 {[%clk 0:01:07]}  Qxe5 {[%clk 0:00:32]} 24. Nxd4 {[%clk 0:01:07]}  Qxd4 {[%clk 0:00:33]} 25. Qxg5+ {[%clk 0:01:07]}  Qg7 {[%clk 0:00:34]} 26. Qe3 {[%clk 0:01:06]}  b6 {[%clk 0:00:30]} 27. Bxf3 {[%clk 0:01:06]}  e5 {[%clk 0:00:29]} 28. Rd1 {[%clk 0:01:00]}  e4 {[%clk 0:00:29]} 29. Bg2 {[%clk 0:00:59]}  Qxb2 {[%clk 0:00:27]} 30. Rd4 {[%clk 0:00:53]}  Re5 {[%clk 0:00:19]} 31. a4 {[%clk 0:00:47]}  c5 {[%clk 0:00:19]} 32. Rd1 {[%clk 0:00:46]}  Bc6 {[%clk 0:00:11]} 33. Qh6 {[%clk 0:00:44]}  Be8 {[%clk 0:00:10]} 34. Qd6 {[%clk 0:00:41]}  Bf7 {[%clk 0:00:09]} 35. Qb8+ {[%clk 0:00:34]}  Kg7 {[%clk 0:00:09]} 36. Qxa7 {[%clk 0:00:34]}  Qe2 {[%clk 0:00:05]} 37. Rf1 {[%clk 0:00:32]}  d4 {[%clk 0:00:04]} 38. Qxb6 {[%clk 0:00:31]}  d3 {[%clk 0:00:05]} 39. Qd6 {[%clk 0:00:31]}  Rd5 {[%clk 0:00:05]} 40. Qa6 {[%clk 0:00:17]}  Qc2 {[%clk 0:00:02]} 41. Bxe4 {[%clk 0:00:16]}  Rd4 {[%clk 0:00:03]} 42. Bf5 {[%clk 0:00:14]}  Qc3 {[%clk 0:00:02]} 43. g5 {[%clk 0:00:14]}  d2 {[%clk 0:00:03]} 44. Qf6+ {[%clk 0:00:15]}  Kg8 {[%clk 0:00:03]} 45. Bg4 {[%clk 0:00:15]}  Rxg4+ {[%clk 0:00:02]} 46. hxg4 {[%clk 0:00:16]}  Qxf6 {[%clk 0:00:03]} 47. gxf6 {[%clk 0:00:16]}  Bb3 {[%clk 0:00:03]} 48. a5 {[%clk 0:00:16]}  d1=Q {[%clk 0:00:04]} 49. Rxd1 {[%clk 0:00:16]}  Bxd1 {[%clk 0:00:05]} 50. a6 {[%clk 0:00:16]}  Bf3 {[%clk 0:00:05]} 51. a7 {[%clk 0:00:17]}  Ba8 {[%clk 0:00:06]} 52. Kf1 {[%clk 0:00:16]}  Kf7 {[%clk 0:00:06]} 53. g5 {[%clk 0:00:16]}  Kg6 {[%clk 0:00:07]} 54. f4 {[%clk 0:00:17]}  h6 {[%clk 0:00:04]} 55. gxh6 {[%clk 0:00:17]}  Kxh6 {[%clk 0:00:05]} 56. Ke2 {[%clk 0:00:18]}  Kg6 {[%clk 0:00:04]} 57. Kd3 {[%clk 0:00:19]}  Kxf6 {[%clk 0:00:02]} 58. Kc4 {[%clk 0:00:20]}  Kf5 {[%clk 0:00:03]} 59. Kxc5 {[%clk 0:00:21]}  Kxf4 {[%clk 0:00:04]} 60. Kb6 {[%clk 0:00:21]}  Ke5 {[%clk 0:00:04]} 61. Kc7 {[%clk 0:00:22]}  Kd5 {[%clk 0:00:04]} 62. Kb8 {[%clk 0:00:23]}  Bc6 {[%clk 0:00:05]} 63. a8=Q {[%clk 0:00:24]}  Bxa8 {[%clk 0:00:06]} 1/2-1/2


[Site "https://www.chess.com"]

[Event "Titled Tuesday Blitz November 29 Early 2022"]
[White "Tworuszka, Michal"]
[Black "Nguyen, Thai Dai Van"]
[WhiteFideId "1117858"]
[BlackFideId "358878"]
[WhiteElo "2416"]
[BlackElo "2534"]
[Result "0-1"]
[Round "04"]
[TimeControl "180+1"]
[Date "2022.11.30"]
[WhiteClock "0:00:01"]
[BlackClock "0:00:55"]

1. d4 {[%clk 0:03:00]}  Nf6 {[%clk 0:02:51]} 2. c4 {[%clk 0:02:59]}  e6 {[%clk 0:02:51]} 3. Nc3 {[%clk 0:02:58]}  Bb4 {[%clk 0:02:42]} 4. f3 {[%clk 0:02:57]}  d5 {[%clk 0:02:25]} 5. a3 {[%clk 0:02:51]}  Be7 {[%clk 0:02:25]} 6. e4 {[%clk 0:02:42]}  dxe4 {[%clk 0:02:26]} 7. fxe4 {[%clk 0:02:43]}  c5 {[%clk 0:02:27]} 8. d5 {[%clk 0:02:43]}  exd5 {[%clk 0:02:28]} 9. exd5 {[%clk 0:02:44]}  O-O {[%clk 0:02:27]} 10. Be2 {[%clk 0:02:44]}  Re8 {[%clk 0:02:24]} 11. Nf3 {[%clk 0:02:44]}  Bf5 {[%clk 0:02:21]} 12. O-O {[%clk 0:02:43]}  Nbd7 {[%clk 0:02:09]} 13. d6 {[%clk 0:01:47]}  Bf8 {[%clk 0:02:09]} 14. Nb5 {[%clk 0:01:47]}  Rb8 {[%clk 0:01:47]} 15. Nc7 {[%clk 0:01:33]}  Re4 {[%clk 0:01:46]} 16. Bd3 {[%clk 0:01:30]}  Bxd6 {[%clk 0:01:45]} 17. Bxe4 {[%clk 0:01:16]}  Nxe4 {[%clk 0:01:46]} 18. Nb5 {[%clk 0:00:56]}  Bf8 {[%clk 0:01:40]} 19. Bf4 {[%clk 0:00:39]}  Ra8 {[%clk 0:01:41]} 20. Qd5 {[%clk 0:00:21]}  Bg6 {[%clk 0:01:34]} 21. Rad1 {[%clk 0:00:20]}  Nef6 {[%clk 0:01:32]} 22. Qd2 {[%clk 0:00:19]}  a6 {[%clk 0:01:30]} 23. Nc7 {[%clk 0:00:19]}  Rc8 {[%clk 0:01:31]} 24. Nd5 {[%clk 0:00:19]}  Ne4 {[%clk 0:01:29]} 25. Qe3 {[%clk 0:00:16]}  Nb6 {[%clk 0:01:24]} 26. Ne5 {[%clk 0:00:13]}  f5 {[%clk 0:01:05]} 27. Nxg6 {[%clk 0:00:05]}  hxg6 {[%clk 0:01:06]} 28. Nxb6 {[%clk 0:00:03]}  Qxb6 {[%clk 0:01:07]} 29. Rd7 {[%clk 0:00:02]}  Qxb2 {[%clk 0:01:03]} 30. Qd3 {[%clk 0:00:02]}  Re8 {[%clk 0:00:58]} 31. Qd5+ {[%clk 0:00:01]}  Kh7 {[%clk 0:00:59]} 32. Rxb7 {[%clk 0:00:02]}  Qd4+ {[%clk 0:00:58]} 33. Qxd4 {[%clk 0:00:02]}  cxd4 {[%clk 0:00:59]} 34. Rd1 {[%clk 0:00:02]}  Nc3 {[%clk 0:00:59]} 35. Rxd4 {[%clk 0:00:01]}  Ne2+ {[%clk 0:00:59]} 36. Kf2 {[%clk 0:00:01]}  Nxd4 {[%clk 0:01:00]} 37. Be3 {[%clk 0:00:01]}  Ne6 {[%clk 0:00:59]} 38. Ra7 {[%clk 0:00:01]}  f4 {[%clk 0:00:58]} 39. Bb6 {[%clk 0:00:01]}  Bc5+ {[%clk 0:00:57]} 40. Bxc5 {[%clk 0:00:01]}  Nxc5 {[%clk 0:00:58]} 41. Rc7 {[%clk 0:00:01]}  Nd3+ {[%clk 0:00:58]} 42. Kf3 {[%clk 0:00:01]}  Re3+ {[%clk 0:00:58]} 43. Kg4 {[%clk 0:00:02]}  Re4 {[%clk 0:00:56]} 44. c5 {[%clk 0:00:02]}  Ne5+ {[%clk 0:00:56]} 45. Kg5 {[%clk 0:00:01]}  f3 {[%clk 0:00:54]} 46. gxf3 {[%clk 0:00:01]}  Nxf3# {[%clk 0:00:55]} 0-1


[Site "https://www.chess.com"]

[Event "Titled Tuesday Blitz November 29 Early 2022"]
[White "Urazayev, Arystanbek"]
[Black "Levitan, Caleb Levi"]
[WhiteFideId "13709810"]
[BlackFideId "14332620"]
[WhiteElo "2441"]
[BlackElo "1963"]
[Result "1-0"]
[Round "04"]
[TimeControl "180+1"]
[Date "2022.11.30"]
[WhiteClock "0:01:59"]
[BlackClock "0:00:02"]

1. c4 {[%clk 0:03:00]}  e6 {[%clk 0:02:53]} 2. Nf3 {[%clk 0:02:59]}  Nf6 {[%clk 0:02:52]} 3. Nc3 {[%clk 0:02:58]}  d5 {[%clk 0:02:44]} 4. e3 {[%clk 0:02:58]}  c5 {[%clk 0:02:37]} 5. cxd5 {[%clk 0:02:55]}  exd5 {[%clk 0:02:37]} 6. d4 {[%clk 0:02:55]}  Nc6 {[%clk 0:02:37]} 7. Bb5 {[%clk 0:02:54]}  Be7 {[%clk 0:02:30]} 8. dxc5 {[%clk 0:02:54]}  Bxc5 {[%clk 0:02:29]} 9. O-O {[%clk 0:02:55]}  O-O {[%clk 0:02:29]} 10. b3 {[%clk 0:02:55]}  a6 {[%clk 0:02:18]} 11. Bxc6 {[%clk 0:02:41]}  bxc6 {[%clk 0:02:17]} 12. Bb2 {[%clk 0:02:42]}  Bg4 {[%clk 0:02:16]} 13. Rc1 {[%clk 0:02:42]}  Bd6 {[%clk 0:02:14]} 14. Na4 {[%clk 0:02:42]}  Rc8 {[%clk 0:02:06]} 15. Nc5 {[%clk 0:02:32]}  Qb6 {[%clk 0:01:32]} 16. Qd4 {[%clk 0:02:13]}  Bxf3 {[%clk 0:01:20]} 17. gxf3 {[%clk 0:02:13]}  Rfe8 {[%clk 0:01:16]} 18. f4 {[%clk 0:02:04]}  Bxc5 {[%clk 0:00:38]} 19. Qxc5 {[%clk 0:02:04]}  Qxc5 {[%clk 0:00:34]} 20. Rxc5 {[%clk 0:02:03]}  Ne4 {[%clk 0:00:33]} 21. Ra5 {[%clk 0:02:04]}  Ra8 {[%clk 0:00:26]} 22. Rc1 {[%clk 0:02:03]}  Re6 {[%clk 0:00:25]} 23. f3 {[%clk 0:02:04]}  Rg6+ {[%clk 0:00:22]} 24. Kf1 {[%clk 0:02:03]}  Nd2+ {[%clk 0:00:10]} 25. Kf2 {[%clk 0:02:03]}  Rh6 {[%clk 0:00:10]} 26. Rh1 {[%clk 0:02:00]}  d4 {[%clk 0:00:05]} 27. Bxd4 {[%clk 0:02:00]}  Rh3 {[%clk 0:00:05]} 28. Kg2 {[%clk 0:01:59]}  Rxf3 {[%clk 0:00:04]} 29. Rd1 {[%clk 0:02:00]}  Nxb3 {[%clk 0:00:03]} 30. axb3 {[%clk 0:02:00]}  c5 {[%clk 0:00:02]} 31. Rxc5 {[%clk 0:01:59]} 1-0


[Site "https://www.chess.com"]

[Event "Titled Tuesday Blitz November 29 Early 2022"]
[White "Volkov, Maksim"]
[Black "Kuznetsov, Mikhail"]
[WhiteFideId "54123070"]
[BlackFideId "4117190"]
[WhiteElo "2257"]
[BlackElo "1981"]
[Result "0-1"]
[Round "04"]
[TimeControl "180+1"]
[Date "2022.11.30"]
[WhiteClock "0:00:15"]
[BlackClock "0:00:02"]

1. d4 {[%clk 0:03:00]}  Nf6 {[%clk 0:02:58]} 2. c4 {[%clk 0:03:00]}  g6 {[%clk 0:02:58]} 3. g3 {[%clk 0:03:00]}  Bg7 {[%clk 0:02:57]} 4. Bg2 {[%clk 0:03:01]}  d5 {[%clk 0:02:58]} 5. cxd5 {[%clk 0:03:00]}  Nxd5 {[%clk 0:02:59]} 6. e4 {[%clk 0:03:01]}  Nb6 {[%clk 0:02:59]} 7. Ne2 {[%clk 0:03:01]}  O-O {[%clk 0:02:59]} 8. O-O {[%clk 0:02:59]}  Nc6 {[%clk 0:03:00]} 9. d5 {[%clk 0:02:53]}  Na5 {[%clk 0:02:59]} 10. Nbc3 {[%clk 0:02:52]}  c6 {[%clk 0:02:59]} 11. b4 {[%clk 0:02:22]}  Nac4 {[%clk 0:02:55]} 12. dxc6 {[%clk 0:02:22]}  bxc6 {[%clk 0:02:47]} 13. Qc2 {[%clk 0:02:13]}  Bg4 {[%clk 0:02:41]} 14. Rd1 {[%clk 0:02:04]}  Qc7 {[%clk 0:02:15]} 15. f3 {[%clk 0:01:46]}  Bd7 {[%clk 0:01:58]} 16. Bf4 {[%clk 0:01:44]}  e5 {[%clk 0:01:58]} 17. Bd2 {[%clk 0:01:42]}  Be6 {[%clk 0:01:54]} 18. Rdc1 {[%clk 0:01:28]}  Nxd2 {[%clk 0:01:47]} 19. Qxd2 {[%clk 0:01:29]}  Nc4 {[%clk 0:01:40]} 20. Qe1 {[%clk 0:01:20]}  Rfd8 {[%clk 0:01:34]} 21. Rd1 {[%clk 0:01:19]}  Ne3 {[%clk 0:01:26]} 22. Rxd8+ {[%clk 0:01:15]}  Rxd8 {[%clk 0:01:27]} 23. Qf2 {[%clk 0:01:14]}  Nc2 {[%clk 0:01:16]} 24. Rb1 {[%clk 0:01:11]}  Rd2 {[%clk 0:01:03]} 25. b5 {[%clk 0:00:55]}  cxb5 {[%clk 0:00:46]} 26. Nxb5 {[%clk 0:00:54]}  Qb6 {[%clk 0:00:47]} 27. Qxb6 {[%clk 0:00:49]}  axb6 {[%clk 0:00:48]} 28. Bf1 {[%clk 0:00:48]}  Bxa2 {[%clk 0:00:44]} 29. Rb2 {[%clk 0:00:48]}  Bc4 {[%clk 0:00:40]} 30. Nbc3 {[%clk 0:00:33]}  Bh6 {[%clk 0:00:36]} 31. Nb1 {[%clk 0:00:29]}  Be3+ {[%clk 0:00:26]} 32. Kh1 {[%clk 0:00:22]}  Rd1 {[%clk 0:00:25]} 33. Rxc2 {[%clk 0:00:22]}  Rxf1+ {[%clk 0:00:25]} 34. Kg2 {[%clk 0:00:22]}  Bxe2 {[%clk 0:00:25]} 35. Rxe2 {[%clk 0:00:22]}  Rxb1 {[%clk 0:00:13]} 36. Rxe3 {[%clk 0:00:22]}  Rb2+ {[%clk 0:00:13]} 37. Kh3 {[%clk 0:00:22]}  Kg7 {[%clk 0:00:08]} 38. Rc3 {[%clk 0:00:21]}  h5 {[%clk 0:00:08]} 39. Rc8 {[%clk 0:00:16]}  Rb3 {[%clk 0:00:05]} 40. Kg2 {[%clk 0:00:16]}  Rb2+ {[%clk 0:00:06]} 41. Kh3 {[%clk 0:00:16]}  Kf6 {[%clk 0:00:02]} 42. Re8 {[%clk 0:00:15]}  b5 {[%clk 0:00:02]} 0-1


[Site "https://www.chess.com"]

[Event "Titled Tuesday Blitz November 29 Early 2022"]
[White "Von Buelow, Georg"]
[Black "Donskov, Anatoly"]
[WhiteFideId "4620658"]
[BlackFideId "24143413"]
[WhiteElo "2213"]
[BlackElo "2219"]
[Result "0-1"]
[Round "04"]
[TimeControl "180+1"]
[Date "2022.11.30"]
[WhiteClock "0:00:33"]
[BlackClock "0:00:26"]

1. e4 {[%clk 0:02:47]}  c5 {[%clk 0:02:59]} 2. Nf3 {[%clk 0:02:44]}  e6 {[%clk 0:02:59]} 3. d4 {[%clk 0:02:45]}  cxd4 {[%clk 0:03:00]} 4. Nxd4 {[%clk 0:02:46]}  Nf6 {[%clk 0:03:01]} 5. Nc3 {[%clk 0:02:46]}  Nc6 {[%clk 0:03:01]} 6. Ndb5 {[%clk 0:02:46]}  Bc5 {[%clk 0:03:01]} 7. Bf4 {[%clk 0:02:45]}  O-O {[%clk 0:02:56]} 8. Bc7 {[%clk 0:02:45]}  Qe7 {[%clk 0:02:56]} 9. Bd6 {[%clk 0:02:45]}  Bxd6 {[%clk 0:02:56]} 10. Qxd6 {[%clk 0:02:46]}  Qd8 {[%clk 0:02:56]} 11. Nc7 {[%clk 0:02:42]}  Rb8 {[%clk 0:02:50]} 12. O-O-O {[%clk 0:02:40]}  a6 {[%clk 0:02:47]} 13. Be2 {[%clk 0:02:36]}  b5 {[%clk 0:02:17]} 14. e5 {[%clk 0:02:34]}  Ne8 {[%clk 0:02:15]} 15. Nxe8 {[%clk 0:02:32]}  Rxe8 {[%clk 0:02:16]} 16. f4 {[%clk 0:02:17]}  Qa5 {[%clk 0:02:01]} 17. Qc5 {[%clk 0:01:49]}  Bb7 {[%clk 0:01:04]} 18. Rxd7 {[%clk 0:01:48]}  Nb4 {[%clk 0:01:04]} 19. a3 {[%clk 0:01:13]}  Nd5 {[%clk 0:01:03]} 20. Nxd5 {[%clk 0:01:01]}  Bxd5 {[%clk 0:01:04]} 21. Bf3 {[%clk 0:00:50]}  Bxf3 {[%clk 0:00:45]} 22. gxf3 {[%clk 0:00:50]}  Rbc8 {[%clk 0:00:46]} 23. Qb4 {[%clk 0:00:49]}  Qb6 {[%clk 0:00:46]} 24. Rhd1 {[%clk 0:00:44]}  a5 {[%clk 0:00:31]} 25. Qd4 {[%clk 0:00:42]}  Qc6 {[%clk 0:00:30]} 26. Qe4 {[%clk 0:00:36]}  Qc5 {[%clk 0:00:26]} 27. Qd4 {[%clk 0:00:33]}  Qxc2# {[%clk 0:00:26]} 0-1


[Site "https://www.chess.com"]

[Event "Titled Tuesday Blitz November 29 Early 2022"]
[White "Wagner, Dennis"]
[Black "Hakobyan, Aram"]
[WhiteFideId "24650684"]
[BlackFideId "13306677"]
[WhiteElo "2470"]
[BlackElo "2563"]
[Result "1-0"]
[Round "04"]
[TimeControl "180+1"]
[Date "2022.11.30"]
[WhiteClock "0:00:03"]
[BlackClock "0:00:01"]

1. d4 {[%clk 0:03:00]}  Nf6 {[%clk 0:03:00]} 2. Nf3 {[%clk 0:03:01]}  g6 {[%clk 0:02:59]} 3. c4 {[%clk 0:03:01]}  c5 {[%clk 0:02:59]} 4. d5 {[%clk 0:03:00]}  Bg7 {[%clk 0:02:59]} 5. Nc3 {[%clk 0:03:00]}  O-O {[%clk 0:02:59]} 6. e4 {[%clk 0:03:00]}  d6 {[%clk 0:03:00]} 7. h3 {[%clk 0:02:57]}  e6 {[%clk 0:02:59]} 8. Be2 {[%clk 0:02:55]}  Re8 {[%clk 0:02:58]} 9. O-O {[%clk 0:02:55]}  exd5 {[%clk 0:02:55]} 10. exd5 {[%clk 0:02:56]}  Bf5 {[%clk 0:02:55]} 11. g4 {[%clk 0:02:54]}  Ne4 {[%clk 0:02:52]} 12. Nxe4 {[%clk 0:02:30]}  Bxe4 {[%clk 0:02:53]} 13. Ng5 {[%clk 0:02:30]}  h6 {[%clk 0:02:43]} 14. Nxe4 {[%clk 0:02:27]}  Rxe4 {[%clk 0:02:44]} 15. Bd3 {[%clk 0:02:22]}  Re8 {[%clk 0:02:33]} 16. Qb3 {[%clk 0:02:10]}  Nd7 {[%clk 0:02:31]} 17. f4 {[%clk 0:01:49]}  Qh4 {[%clk 0:02:15]} 18. Kg2 {[%clk 0:01:49]}  Nf6 {[%clk 0:02:09]} 19. Qd1 {[%clk 0:01:39]}  b5 {[%clk 0:01:44]} 20. cxb5 {[%clk 0:01:29]}  Nxd5 {[%clk 0:01:42]} 21. Bxg6 {[%clk 0:00:40]}  Re3 {[%clk 0:00:48]} 22. Bxf7+ {[%clk 0:00:35]}  Kh8 {[%clk 0:00:48]} 23. Rf3 {[%clk 0:00:25]}  Nxf4+ {[%clk 0:00:47]} 24. Kf1 {[%clk 0:00:18]}  Rxf3+ {[%clk 0:00:28]} 25. Qxf3 {[%clk 0:00:19]}  Rf8 {[%clk 0:00:28]} 26. Bxf4 {[%clk 0:00:09]}  Rxf7 {[%clk 0:00:28]} 27. Kg2 {[%clk 0:00:09]}  d5 {[%clk 0:00:08]} 28. Rf1 {[%clk 0:00:09]}  Qd8 {[%clk 0:00:08]} 29. Qg3 {[%clk 0:00:08]}  Qe8 {[%clk 0:00:07]} 30. Qf3 {[%clk 0:00:07]}  d4 {[%clk 0:00:06]} 31. Qd5 {[%clk 0:00:06]}  Rf8 {[%clk 0:00:02]} 32. Rf2 {[%clk 0:00:05]}  Qe7 {[%clk 0:00:01]} 33. a4 {[%clk 0:00:03]} 1-0


[Site "https://www.chess.com"]